bitfinex-derivatives/quotes_BTCF0:USTF0_20241104
["timestamp","ask_amount","ask_price","bid_price","bid_amount"]
[1730680524184,0.12207195,68562.0,68561.0,0.065657]
[1730680524487,0.065659,68560.0,68557.0,0.065661]
[1730680524695,0.065659,68560.0,68547.0,0.3608]
[1730680524696,0.12207195,68559.0,68558.0,0.065659]
[1730680524994,0.17687293,68559.0,68558.0,0.065659]
[1730680527193,0.17687293,68559.0,68547.0,0.3608]
[1730680527396,0.14014026,68560.0,68547.0,0.3608]
[1730680527397,0.14373344,68552.0,68547.0,0.3608]
[1730680527599,0.14373344,68550.0,68547.0,0.3608]
[1730680527897,0.03504652,68549.0,68548.0,0.06567]
[1730680528103,0.12207195,68549.0,68548.0,0.06567]
[1730680529099,0.12307195,68549.0,68548.0,0.06867]
[1730680530902,0.12307195,68549.0,68548.0,0.65145026]
[1730680531505,0.15810678,68560.0,68548.0,0.74793646]
[1730680531804,0.065654,68565.0,68559.0,0.065659]
[1730680531995,0.065654,68565.0,68562.0,0.04358911]
[1730680532197,0.065654,68565.0,68562.0,0.10924511]
[1730680533407,0.065654,68565.0,68562.0,0.065656]
[1730680533596,0.065654,68565.0,68562.0,0.10924511]
[1730680533996,0.38919264,68566.0,68561.0,0.04358911]
[1730680534198,0.065656,68562.0,68561.0,0.04358911]
[1730680534394,0.14014026,68565.0,68559.0,0.07548911]
[1730680534395,0.065657,68561.0,68559.0,0.07548911]
[1730680534591,0.14814026,68565.0,68559.0,0.065659]
[1730680534913,0.065656,68563.0,68562.0,0.001]
[1730680535208,0.3608,68563.0,68555.0,0.04362022]
[1730680535411,0.3608,68563.0,68551.0,0.05811887]
[1730680535412,0.065665,68553.0,68551.0,0.04362394]
[1730680535602,0.065669,68550.0,68549.0,0.12378787]
[1730680535795,0.426469,68550.0,68549.0,0.12378787]
[1730680536412,0.426469,68550.0,68549.0,0.05811887]
[1730680536598,0.065672,68546.0,68545.0,0.065673]
[1730680537602,0.065672,68546.0,68545.0,0.13832159]
[1730680538302,0.065672,68546.0,68545.0,0.067673]
[1730680538496,0.065672,68546.0,68545.0,0.23750629]
[1730680538700,0.065672,68546.0,68545.0,0.24150629]
[1730680539206,0.065672,68546.0,68545.0,0.1688577]
[1730680540305,0.065672,68546.0,68545.0,0.1031847]
[1730680540801,0.065672,68546.0,68545.0,0.17603981]
[1730680541610,0.065672,68546.0,68545.0,0.1031847]
[1730680541909,0.065672,68546.0,68545.0,0.0991847]
[1730680542107,0.001,68546.0,68545.0,0.1648577]
[1730680542305,0.004,68546.0,68545.0,0.1628577]
[1730680542512,0.004,68546.0,68545.0,0.25018899]
[1730680543410,0.3608,68556.0,68555.0,0.065663]
[1730680543904,0.06566,68559.0,68556.0,0.065661]
[1730680544104,0.06566,68559.0,68558.0,0.07285898]
[1730680544811,0.06566,68559.0,68558.0,0.13851898]
[1730680545114,0.065657,68562.0,68560.0,0.065658]
[1730680545405,0.065657,68561.0,68560.0,0.13851284]
[1730680545610,0.065657,68561.0,68560.0,0.065658]
[1730680546309,0.065657,68561.0,68560.0,0.13851284]
[1730680546512,0.09982533,68561.0,68560.0,0.065658]
[1730680547308,0.07389259,68561.0,68560.0,0.065658]
[1730680547701,0.07889259,68561.0,68560.0,0.065658]
[1730680548407,0.065661,68558.0,68556.0,0.065662]
[1730680548604,0.03409987,68557.0,68556.0,0.065662]
[1730680548800,0.09976087,68557.0,68556.0,0.065662]
[1730680550207,0.10076087,68557.0,68556.0,0.065662]
[1730680550702,0.1007426,68557.0,68556.0,0.065662]
[1730680551209,0.1007426,68557.0,68556.0,0.066662]
[1730680553505,0.066661,68557.0,68556.0,0.066662]
[1730680553708,0.066661,68557.0,68556.0,0.23614585]
[1730680554101,0.066661,68557.0,68556.0,0.17048385]
[1730680554315,0.066661,68557.0,68556.0,0.001]
[1730680555223,0.20680126,68557.0,68556.0,0.001]
[1730680555513,0.56760126,68557.0,68556.0,0.001]
[1730680556715,0.56660126,68557.0,68554.0,0.05828629]
[1730680557012,0.065664,68554.0,68553.0,0.05828629]
[1730680557417,0.426464,68554.0,68553.0,0.05828629]
[1730680557608,0.426464,68554.0,68550.0,0.05828629]
[1730680557609,0.065666,68552.0,68550.0,0.05828629]
[1730680557806,0.20580726,68551.0,68550.0,0.05828629]
[1730680558813,0.14014026,68551.0,68550.0,0.05828629]
[1730680559015,0.14014026,68551.0,68544.0,0.07503561]
[1730680559319,0.14014026,68551.0,68549.0,0.05827869]
[1730680559616,0.14014026,68551.0,68548.0,0.05827869]
[1730680559818,0.065669,68549.0,68548.0,0.05827869]
[1730680560407,0.06567,68548.0,68547.0,0.05827869]
[1730680560608,0.42647,68548.0,68547.0,0.05827869]
[1730680561613,0.3608,68548.0,68544.0,0.00218811]
[1730680561817,0.426473,68545.0,68535.0,0.0313]
[1730680562017,0.065686,68531.0,68530.0,0.065687]
[1730680562516,0.065682,68535.0,68528.0,0.17254026]
[1730680562720,0.065682,68535.0,68534.0,0.065683]
[1730680563521,0.3608,68536.0,68530.0,0.3608]
[1730680563707,0.3608,68536.0,68531.0,0.065686]
[1730680563708,0.065686,68532.0,68531.0,0.065686]
[1730680565214,0.001,68535.0,68530.0,0.3658]
[1730680565521,0.001,68535.0,68534.0,0.065683]
[1730680566520,0.001,68536.0,68535.0,0.065682]
[1730680566817,0.065676,68542.0,68533.0,0.14014026]
[1730680567030,0.3608,68545.0,68531.0,0.005]
[1730680567031,0.14014026,68540.0,68531.0,0.005]
[1730680567211,0.065682,68535.0,68534.0,0.005]
[1730680567810,0.065682,68535.0,68530.0,0.3608]
[1730680567811,0.001,68536.0,68535.0,0.004]
[1730680568114,0.066681,68536.0,68535.0,0.004]
[1730680568325,0.427481,68536.0,68530.0,0.3608]
[1730680568508,0.065686,68531.0,68530.0,0.3608]
[1730680568703,0.065686,68531.0,68530.0,0.4336475]
[1730680569510,0.065686,68531.0,68530.0,0.3608]
[1730680570118,0.066686,68531.0,68530.0,0.3658]
[1730680570714,0.066686,68531.0,68530.0,0.3698]
[1730680570914,0.066686,68531.0,68530.0,0.435487]
[1730680571115,0.066686,68531.0,68530.0,0.60578991]
[1730680571717,0.066686,68531.0,68530.0,0.5083345]
[1730680572020,0.066686,68531.0,68530.0,0.60574617]
[1730680572924,0.066686,68531.0,68530.0,0.4426475]
[1730680573124,0.0959718,68531.0,68530.0,0.4426475]
[1730680573627,0.0959718,68531.0,68530.0,0.3698]
[1730680575220,0.0959718,68531.0,68530.0,0.009]
[1730680576424,0.0959718,68531.0,68530.0,0.05262591]
[1730680576625,0.0959718,68531.0,68530.0,0.009]
[1730680576819,0.1982118,68531.0,68530.0,0.009]
[1730680578524,0.065702,68514.0,68513.0,0.0322]
[1730680578726,0.426502,68514.0,68513.0,0.0322]
[1730680579023,0.426502,68514.0,68508.0,0.0311]
[1730680579024,0.065707,68509.0,68508.0,0.0311]
[1730680580325,0.065708,68508.0,68507.0,0.00076]
[1730680580531,0.065708,68508.0,68500.0,0.1]
[1730680580532,0.065715,68501.0,68500.0,0.1]
[1730680581324,0.065715,68501.0,68494.0,0.00023]
[1730680581325,0.065721,68495.0,68494.0,0.00023]
[1730680581624,0.56666126,68495.0,68494.0,0.00023]
[1730680582818,0.56666126,68495.0,68486.0,0.3608]
[1730680582819,0.065728,68487.0,68486.0,0.3608]
[1730680583022,0.065735,68480.0,68479.0,0.3608]
[1730680583422,0.3608,68481.0,68472.0,0.065743]
[1730680583622,0.3608,68481.0,68479.0,0.0436302]
[1730680583623,0.065735,68480.0,68479.0,0.0436302]
[1730680583830,0.3608,68481.0,68479.0,0.0436302]
[1730680584232,0.42685125,68480.0,68468.0,0.0728475]
[1730680584529,0.42685125,68480.0,68444.0,0.3608]
[1730680584530,0.7216,68469.0,68440.0,0.02823199]
[1730680584721,0.7216,68469.0,68419.0,0.3608]
[1730680584722,0.065778,68436.0,68419.0,0.3608]
[1730680584924,0.14014026,68435.0,68425.0,0.3608]
[1730680585128,0.3608,68441.0,68439.0,0.065774]
[1730680585129,0.00132,68441.0,68439.0,0.065774]
[1730680585333,0.00132,68441.0,68426.0,0.20454026]
[1730680585334,0.14014026,68441.0,68431.0,0.3608]
[1730680585634,0.14014026,68446.0,68445.0,0.065769]
[1730680586040,0.3608,68449.0,68448.0,0.065766]
[1730680586226,0.14014026,68457.0,68448.0,0.3608]
[1730680586422,0.14014026,68457.0,68456.0,0.065758]
[1730680586636,0.14014026,68457.0,68456.0,0.1208439]
[1730680586935,0.14014026,68467.0,68456.0,0.4158859]
[1730680587120,0.14014026,68467.0,68466.0,0.0550859]
[1730680589437,0.14314026,68467.0,68466.0,0.0550859]
[1730680589824,0.14914026,68467.0,68466.0,0.1208349]
[1730680590329,0.14714026,68467.0,68466.0,0.1208349]
[1730680590530,0.007,68467.0,68466.0,0.1208349]
[1730680591433,0.006,68467.0,68466.0,0.1208349]
[1730680592228,0.004,68467.0,68466.0,0.1208349]
[1730680592431,0.004,68467.0,68466.0,0.0550859]
[1730680592432,0.14414026,68467.0,68466.0,0.0550859]
[1730680592635,0.20988826,68467.0,68466.0,0.0550859]
[1730680593027,0.20888826,68467.0,68466.0,0.0550859]
[1730680593630,0.20588826,68467.0,68466.0,0.0550859]
[1730680593832,0.20588826,68467.0,68466.0,0.0560859]
[1730680594335,0.20888826,68467.0,68466.0,0.0550859]
[1730680594840,0.20588826,68467.0,68466.0,0.0550859]
[1730680595041,0.21388826,68467.0,68466.0,0.0550859]
[1730680595430,0.21988826,68467.0,68466.0,0.0550859]
[1730680596125,0.21988826,68467.0,68427.0,0.14014026]
[1730680596126,0.65704826,68467.0,68427.0,0.14014026]
[1730680596335,0.065761,68453.0,68452.0,0.0316]
[1730680597227,0.20590126,68453.0,68452.0,0.0316]
[1730680597631,0.34604152,68453.0,68452.0,0.0316]
[1730680597831,0.065765,68449.0,68442.0,0.00219139]
[1730680598038,0.065771,68443.0,68442.0,0.00219139]
[1730680598340,0.56671126,68443.0,68442.0,0.00219139]
[1730680598538,0.3608,68443.0,68442.0,0.06796339]
[1730680599138,0.02872175,68450.0,68442.0,0.06796339]
[1730680599337,0.065771,68443.0,68442.0,0.06796339]
[1730680599542,0.065771,68443.0,68442.0,0.00219139]
[1730680599731,0.004,68443.0,68430.0,0.393]
[1730680599938,0.14014026,68438.0,68437.0,0.065776]
[1730680600132,0.20591526,68438.0,68437.0,0.065776]
[1730680600337,0.58028052,68438.0,68401.0,0.3608]
[1730680600534,0.58028052,68438.0,68401.0,0.0322]
[1730680600535,0.065799,68414.0,68401.0,0.0322]
[1730680600831,0.3608,68419.0,68401.0,0.0322]
[1730680600832,0.50094026,68410.0,68409.0,0.065803]
[1730680601143,0.31690342,68410.0,68409.0,0.065803]
[1730680601845,0.31690342,68410.0,68402.0,0.0306]
[1730680601846,0.065804,68409.0,68402.0,0.0306]
[1730680602143,0.3608,68403.0,68402.0,0.09641]
[1730680602446,0.3608,68409.0,68402.0,1.13]
[1730680602639,0.3608,68409.0,68408.0,0.065804]
[1730680602938,0.3608,68416.0,68415.0,0.065798]
[1730680604249,0.3618,68416.0,68415.0,0.065798]
[1730680604743,0.3119,68416.0,68415.0,0.065798]
[1730680605445,0.3129,68416.0,68415.0,0.065798]
[1730680606036,0.002,68416.0,68415.0,0.865078]
[1730680606237,0.065789,68424.0,68420.0,0.065792]
[1730680606445,0.065789,68424.0,68421.0,0.0626]
[1730680607738,0.066789,68424.0,68421.0,0.0626]
[1730680607940,0.065791,68422.0,68421.0,0.0626]
[1730680608338,0.426591,68422.0,68421.0,0.0626]
[1730680609146,0.427591,68422.0,68421.0,0.0626]
[1730680610247,0.428591,68422.0,68421.0,0.0646]
[1730680610549,0.428591,68422.0,68421.0,0.002]
[1730680611947,0.429591,68422.0,68421.0,0.002]
[1730680612349,0.80224,68422.0,68410.0,0.0656]
[1730680612651,0.80224,68422.0,68409.0,0.3608]
[1730680612652,0.065802,68410.0,68409.0,0.3608]
[1730680614659,0.065802,68410.0,68409.0,0.3618]
[1730680614660,0.066802,68410.0,68409.0,0.3618]
[1730680615155,0.066802,68410.0,68409.0,0.001]
[1730680615658,0.067802,68410.0,68409.0,0.001]
[1730680619760,0.72292,68415.0,68409.0,0.066803]
[1730680619967,0.3608,68415.0,68414.0,0.065799]
[1730680620262,0.3608,68425.0,68409.0,0.21169261]
[1730680620464,0.065789,68424.0,68423.0,0.065789]
[1730680620966,0.3608,68425.0,68409.0,0.001]
[1730680621152,0.065801,68412.0,68411.0,0.065801]
[1730680621351,0.065807,68406.0,68405.0,0.065806]
[1730680621852,0.06581,68403.0,68400.0,0.46383278]
[1730680622052,0.21069261,68408.0,68400.0,0.46299278]
[1730680622265,0.21069261,68401.0,68400.0,0.10219278]
[1730680622451,0.27650361,68401.0,68400.0,0.10219278]
[1730680623050,0.27650361,68401.0,68400.0,0.13529278]
[1730680623457,0.065811,68401.0,68400.0,0.13529278]
[1730680623656,0.066811,68401.0,68400.0,0.13629278]
[1730680623861,0.001,68401.0,68400.0,0.20210478]
[1730680624266,0.066805,68408.0,68407.0,0.065805]
[1730680624762,0.001,68408.0,68407.0,0.065805]
[1730680624950,0.001,68408.0,68400.0,0.13629278]
[1730680624951,0.427883,68410.0,68409.0,0.065803]
[1730680625153,0.426603,68410.0,68409.0,0.065803]
[1730680625350,0.21069261,68421.0,68404.0,0.07251994]
[1730680625565,0.065803,68411.0,68410.0,0.065801]
[1730680625867,0.3608,68425.0,68407.0,0.21069261]
[1730680626080,0.426588,68425.0,68424.0,0.065789]
[1730680626367,0.3608,68425.0,68424.0,0.065789]
[1730680626862,0.065789,68424.0,68422.0,0.07272239]
[1730680627079,0.065791,68423.0,68421.0,0.13851439]
[1730680627364,0.002,68419.0,68418.0,0.07272239]
[1730680627660,0.002,68419.0,68417.0,0.065795]
[1730680627661,0.065795,68418.0,68417.0,0.065795]
[1730680627866,0.065795,68418.0,68417.0,0.13862848]
[1730680628361,0.065795,68418.0,68417.0,0.16210082]
[1730680628560,0.3608,68419.0,68417.0,0.0962904]
[1730680628762,0.432588,68425.0,68418.0,0.18273328]
[1730680628953,0.432588,68425.0,68424.0,0.13864751]
[1730680629152,0.3668,68425.0,68424.0,0.23493791]
[1730680629460,0.3608,68425.0,68424.0,0.16188758]
[1730680630170,0.47352001,68436.0,68431.0,0.06578]
[1730680630171,0.065782,68432.0,68431.0,0.06578]
[1730680630371,0.065779,68435.0,68433.0,0.06578]
[1730680630667,0.3608,68436.0,68435.0,0.065778]
[1730680631059,0.426577,68436.0,68435.0,0.07291073]
[1730680631259,0.065778,68435.0,68434.0,0.07291073]
[1730680631571,0.06578,68433.0,68430.0,0.065783]
[1730680631865,0.065781,68432.0,68431.0,0.09569453]
[1730680632063,0.57477261,68436.0,68435.0,0.065778]
[1730680632267,0.3628,68436.0,68435.0,0.065778]
[1730680632471,0.3628,68436.0,68435.0,0.23422681]
[1730680632764,0.3628,68436.0,68435.0,0.23417288]
[1730680632970,0.63726961,68436.0,68435.0,0.13866573]
[1730680633156,0.63726961,68436.0,68434.0,0.07288773]
[1730680633157,0.57149261,68436.0,68434.0,0.07288773]
[1730680633359,0.065778,68435.0,68434.0,0.065779]
[1730680634559,0.069778,68435.0,68434.0,0.065779]
[1730680635471,0.071778,68435.0,68434.0,0.065779]
[1730680635654,0.006,68435.0,68434.0,0.065779]
[1730680636866,0.12879325,68435.0,68434.0,0.03433895]
[1730680638468,0.12679325,68435.0,68434.0,0.03633895]
[1730680639370,0.07618468,68435.0,68434.0,0.03733895]
[1730680639667,0.18823123,68435.0,68434.0,0.03733895]
[1730680639971,0.18821803,68435.0,68434.0,0.03733895]
[1730680641166,0.19021803,68435.0,68434.0,0.03533895]
[1730680641467,0.19021803,68435.0,68429.0,0.065784]
[1730680641468,0.065782,68431.0,68429.0,0.065784]
[1730680641669,0.71346029,68430.0,68429.0,0.065784]
[1730680642972,0.71346029,68430.0,68423.0,0.0327]
[1730680642973,0.64767729,68430.0,68423.0,0.0327]
[1730680643266,0.426589,68424.0,68423.0,0.06579]
[1730680643470,0.50277368,68424.0,68423.0,0.06579]
[1730680643869,0.426589,68424.0,68423.0,0.06579]
[1730680645064,0.428589,68424.0,68423.0,0.06579]
[1730680645763,0.428589,68424.0,68419.0,0.0582285]
[1730680645764,0.065793,68420.0,68419.0,0.065793]
[1730680645972,0.065791,68423.0,68422.0,0.065791]
[1730680646476,0.36416,68424.0,68423.0,0.06579]
[1730680646672,0.3668,68424.0,68423.0,0.06579]
[1730680647063,0.3628,68424.0,68423.0,0.06579]
[1730680647369,0.002,68424.0,68423.0,0.06579]
[1730680647569,0.002,68424.0,68423.0,0.1240185]
[1730680647974,0.004,68424.0,68423.0,0.1240185]
[1730680648468,0.004,68424.0,68423.0,0.06579]
[1730680648858,0.006,68424.0,68423.0,0.06579]
[1730680650066,0.004,68424.0,68423.0,0.06579]
[1730680650767,0.004,68424.0,68423.0,0.16140437]
[1730680651071,0.004,68424.0,68423.0,0.50423]
[1730680651369,0.002,68424.0,68423.0,0.50423]
[1730680652268,0.003,68424.0,68423.0,0.07079]
[1730680652865,0.002,68424.0,68423.0,0.07179]
[1730680653969,0.067789,68424.0,68423.0,0.07179]
[1730680654163,0.067789,68424.0,68423.0,0.006]
[1730680654467,0.066789,68424.0,68423.0,0.006]
[1730680654767,0.001,68424.0,68416.0,0.065797]
[1730680654973,0.57281261,68426.0,68404.0,0.11488]
[1730680654974,0.3608,68417.0,68404.0,0.0321]
[1730680655182,0.3608,68417.0,68401.0,0.032]
[1730680655183,0.21069261,68405.0,68401.0,0.032]
[1730680655476,0.21069261,68405.0,68404.0,0.065808]
[1730680655777,0.3608,68406.0,68405.0,0.065807]
[1730680655975,0.426603,68410.0,68409.0,0.065803]
[1730680655976,0.36208,68410.0,68409.0,0.065803]
[1730680656269,0.3608,68410.0,68409.0,0.065803]
[1730680657366,0.3618,68410.0,68409.0,0.065803]
[1730680657566,0.065803,68409.0,68405.0,0.065807]
[1730680657777,0.57377261,68410.0,68404.0,0.005]
[1730680657971,0.57249261,68410.0,68408.0,0.065804]
[1730680658179,0.57249261,68410.0,68404.0,0.005]
[1730680658472,0.57349261,68410.0,68409.0,0.065803]
[1730680659177,0.57249261,68410.0,68409.0,0.065803]
[1730680659376,0.57349261,68410.0,68409.0,0.065803]
[1730680659677,0.3628,68410.0,68409.0,0.065803]
[1730680660564,0.3628,68410.0,68409.0,0.12409507]
[1730680660760,0.3618,68410.0,68409.0,0.065803]
[1730680660968,0.3628,68410.0,68409.0,0.065803]
[1730680661567,0.3628,68410.0,68409.0,0.12408789]
[1730680661768,0.3618,68410.0,68409.0,0.12408789]
[1730680661973,0.3628,68410.0,68409.0,0.12408789]
[1730680662165,0.3628,68410.0,68408.0,0.05828489]
[1730680662363,0.065804,68408.0,68407.0,0.05828489]
[1730680662565,0.065804,68408.0,68400.0,0.1]
[1730680662566,0.065806,68406.0,68400.0,0.1]
[1730680662763,0.426611,68401.0,68400.0,0.1]
[1730680664172,0.865211,68401.0,68400.0,0.0002]
[1730680664480,0.865211,68401.0,68382.0,0.07284442]
[1730680664682,0.3608,68387.0,68386.0,0.065825]
[1730680665174,0.3608,68387.0,68381.0,0.13867342]
[1730680665175,0.065826,68386.0,68381.0,0.13867342]
[1730680665377,0.11488,68385.0,68370.0,0.08737269]
[1730680665578,0.11488,68385.0,68355.0,0.11644172]
[1730680665579,0.7216,68371.0,68348.0,0.098961]
[1730680665788,0.3608,68356.0,68355.0,0.065855]
[1730680665971,0.3608,68371.0,68370.0,0.065841]
[1730680666167,0.57149261,68371.0,68363.0,0.065847]
[1730680666379,0.57149261,68364.0,68349.0,0.0008]
[1730680666681,0.57149261,68364.0,68346.0,0.3608]
[1730680666682,0.57149261,68364.0,68363.0,0.065848]
[1730680667069,0.63733961,68364.0,68348.0,1.5]
[1730680667278,0.065849,68362.0,68358.0,0.065852]
[1730680667476,0.57285261,68364.0,68361.0,0.065849]
[1730680667684,0.57149261,68364.0,68361.0,0.065849]
[1730680668080,0.63733961,68364.0,68361.0,0.065849]
[1730680668482,0.57249261,68364.0,68348.0,1.5]
[1730680668682,0.065852,68359.0,68348.0,1.5]
[1730680668883,0.57377261,68364.0,68348.0,1.5]
[1730680669186,0.57377261,68364.0,68357.0,0.065853]
[1730680669187,0.065848,68363.0,68357.0,0.065853]
[1730680669376,0.065851,68360.0,68348.0,1.5]
[1730680669578,0.065853,68358.0,68353.0,0.065857]
[1730680669772,0.57481261,68364.0,68354.0,0.065856]
[1730680669773,0.21069261,68355.0,68354.0,0.065856]
[1730680670075,0.065849,68362.0,68358.0,0.065852]
[1730680671471,0.065849,68362.0,68359.0,0.065851]
[1730680671678,0.001,68362.0,68348.0,1.5]
[1730680671880,0.001,68362.0,68361.0,0.06585]
[1730680672585,0.002,68362.0,68361.0,0.06585]
[1730680673176,0.001,68362.0,68361.0,0.06585]
[1730680673376,0.002,68362.0,68361.0,0.06585]
[1730680673885,0.002,68362.0,68348.0,1.5]
[1730680674087,0.067849,68362.0,68348.0,1.5]
[1730680674291,0.067849,68362.0,68361.0,0.06585]
[1730680674479,0.066849,68362.0,68361.0,0.06585]
[1730680674680,0.067849,68362.0,68361.0,0.06585]
[1730680674879,0.06585,68361.0,68356.0,0.065854]
[1730680675079,0.06585,68361.0,68358.0,0.065852]
[1730680675692,0.06585,68361.0,68359.0,0.065851]
[1730680675984,0.06585,68361.0,68348.0,1.5]
[1730680675985,0.065851,68360.0,68358.0,0.065852]
[1730680676991,0.002,68361.0,68348.0,1.5]
[1730680677196,0.002,68361.0,68360.0,0.065851]
[1730680677382,0.3608,68364.0,68363.0,0.065848]
[1730680677691,0.3608,68364.0,68363.0,1.565848]
[1730680677887,0.426647,68364.0,68363.0,1.5]
[1730680678390,0.065847,68364.0,68363.0,1.5]
[1730680678590,0.426647,68364.0,68363.0,1.565848]
[1730680678792,0.427647,68364.0,68363.0,1.565848]
[1730680679987,0.428647,68364.0,68363.0,1.501]
[1730680680390,0.065857,68354.0,68351.0,0.065858]
[1730680680587,0.21069261,68352.0,68351.0,0.065859]
[1730680680989,0.27655061,68352.0,68351.0,1.565859]
[1730680681389,0.21069261,68352.0,68333.0,0.3608]
[1730680681591,0.21069261,68344.0,68343.0,0.098967]
[1730680682488,0.3608,68346.0,68345.0,0.065865]
[1730680682898,0.3608,68346.0,68343.0,1.53398]
[1730680683100,0.3608,68346.0,68334.0,0.0332]
[1730680683102,0.63735861,68344.0,68334.0,0.0332]
[1730680683301,0.78218522,68335.0,68298.0,0.14509643]
[1730680683494,0.78218522,68335.0,68303.0,0.065905]
[1730680683495,0.065902,68307.0,68303.0,0.065905]
[1730680683688,0.3608,68310.0,68304.0,0.00076]
[1730680683893,0.3608,68310.0,68309.0,0.0659]
[1730680684094,0.21069261,68325.0,68308.0,0.3608]
[1730680684095,0.065892,68317.0,68308.0,0.3608]
[1730680684395,0.065894,68315.0,68310.0,0.065898]
[1730680684699,0.001,68307.0,68302.0,0.065906]
[1730680684899,0.001,68307.0,68301.0,0.18638]
[1730680684900,0.001,68307.0,68306.0,0.426703]
[1730680685086,0.21069261,68319.0,68306.0,0.3608]
[1730680685087,0.065891,68318.0,68306.0,0.3608]
[1730680685288,0.065891,68319.0,68306.0,0.3608]
[1730680685605,0.065891,68319.0,68315.0,0.065894]
[1730680686101,0.426686,68323.0,68316.0,0.065892]
[1730680686283,0.001,68317.0,68316.0,0.065892]
[1730680687103,0.001,68319.0,68318.0,0.065891]
[1730680687399,0.3608,68329.0,68328.0,0.065881]
[1730680687700,0.065877,68333.0,68318.0,0.3608]
[1730680687887,0.065877,68333.0,68327.0,0.065882]
[1730680688091,0.065877,68333.0,68328.0,0.065881]
[1730680688287,0.001,68323.0,68322.0,0.065886]
[1730680688602,0.21069261,68338.0,68321.0,0.47142]
[1730680688898,0.065869,68341.0,68337.0,0.065873]
[1730680689704,0.3608,68342.0,68327.0,0.001]
[1730680689894,0.3608,68342.0,68338.0,0.065871]
[1730680690094,0.3608,68342.0,68339.0,0.06587]
[1730680690291,0.3608,68342.0,68340.0,0.06587]
[1730680690596,0.3608,68342.0,68341.0,0.065869]
[1730680691891,0.3608,68342.0,68341.0,0.068869]
[1730680692197,0.426668,68342.0,68341.0,0.003]
[1730680692690,0.3608,68342.0,68341.0,0.065869]
[1730680692995,0.3608,68342.0,68341.0,0.069869]
[1730680693405,0.3608,68342.0,68341.0,0.068869]
[1730680693603,0.3608,68342.0,68341.0,0.070869]
[1730680693998,0.426668,68342.0,68341.0,0.003]
[1730680694300,0.426668,68342.0,68341.0,0.005]
[1730680696088,0.426668,68342.0,68341.0,0.003]
[1730680696390,0.427668,68342.0,68341.0,0.002]
[1730680696597,0.3618,68342.0,68341.0,0.068869]
[1730680696788,0.3618,68342.0,68341.0,0.066869]
[1730680698996,0.63836061,68342.0,68341.0,0.001]
[1730680700903,0.63836061,68342.0,68341.0,0.066869]
[1730680701204,0.57249261,68342.0,68341.0,0.066869]
[1730680701701,0.3618,68342.0,68341.0,0.066869]
[1730680703896,0.3618,68342.0,68341.0,0.03446012]
[1730680703897,0.48588512,68342.0,68341.0,0.03446012]
[1730680704201,0.7522066,68342.0,68336.0,0.04919377]
[1730680704503,0.065874,68336.0,68333.0,0.066756]
[1730680704803,0.12408512,68335.0,68333.0,0.066756]
[1730680704995,0.12408512,68334.0,68333.0,0.065876]
[1730680706391,0.12408512,68334.0,68333.0,0.067876]
[1730680706392,0.12508512,68334.0,68333.0,0.067876]
[1730680706704,0.48588512,68334.0,68333.0,0.002]
[1730680706904,0.6950188,68334.0,68333.0,0.002]
[1730680707100,0.6950188,68334.0,68307.0,0.3608]
[1730680707101,0.60572541,68334.0,68307.0,0.3608]
[1730680707302,0.14326,68324.0,68322.0,0.065886]
[1730680707515,0.47803773,68323.0,68318.0,0.065891]
[1730680707698,0.26734512,68322.0,68319.0,0.065889]
[1730680707892,0.12408512,68321.0,68319.0,0.065889]
[1730680708210,0.55077412,68320.0,68319.0,0.065889]
[1730680708897,0.065892,68318.0,68314.0,0.065894]
[1730680709098,0.21069261,68315.0,68314.0,0.065894]
[1730680709297,0.33477773,68315.0,68314.0,0.065894]
[1730680709501,0.12408512,68315.0,68314.0,0.065894]
[1730680710895,0.157586,68316.0,68314.0,0.24908256]
[1730680711101,0.157586,68316.0,68315.0,0.09619986]
[1730680711302,0.157586,68316.0,68315.0,0.18318856]
[1730680711503,0.43417161,68316.0,68315.0,0.09619986]
[1730680711705,0.43417161,68316.0,68308.0,0.0877487]
[1730680711706,0.505054,68315.0,68308.0,0.0877487]
[1730680712006,0.065905,68303.0,68298.0,0.06591]
[1730680712305,0.27659861,68302.0,68301.0,0.09516037]
[1730680712498,0.27659861,68302.0,68297.0,1.5869887]
[1730680712499,0.21069261,68302.0,68297.0,1.5008]
[1730680712696,0.065907,68301.0,68297.0,1.5008]
[1730680712896,0.065907,68301.0,68300.0,0.19414544]
[1730680713208,0.065907,68301.0,68300.0,0.09897732]
[1730680713898,0.21069261,68302.0,68300.0,0.09897732]
[1730680714207,0.21169261,68302.0,68300.0,0.09897732]
[1730680714615,0.21269261,68302.0,68300.0,0.09897732]
[1730680715012,0.002,68302.0,68301.0,0.065907]
[1730680715199,0.002,68302.0,68301.0,0.129107]
[1730680715704,0.002,68302.0,68301.0,0.065907]
[1730680716011,0.002,68302.0,68300.0,0.09897732]
[1730680716203,0.56856,68301.0,68292.0,0.04372705]
[1730680716404,0.065931,68277.0,68273.0,0.0869887]
[1730680716605,0.21069261,68274.0,68273.0,0.065934]
[1730680716803,0.3608,68279.0,68272.0,0.3608]
[1730680717004,0.21069261,68280.0,68277.0,0.06593]
[1730680717202,0.3608,68286.0,68272.0,0.3608]
[1730680717414,0.21069261,68281.0,68280.0,0.065928]
[1730680718212,0.3608,68300.0,68299.0,0.065909]
[1730680718698,0.57149261,68300.0,68299.0,0.065909]
[1730680719307,1.01073261,68300.0,68287.0,0.0328]
[1730680719501,1.01073261,68300.0,68290.0,0.065917]
[1730680719502,0.3608,68293.0,68290.0,0.065917]
[1730680719698,0.21069261,68291.0,68290.0,0.065917]
[1730680720105,0.21069261,68298.0,68287.0,0.0328]
[1730680720307,0.27660361,68298.0,68293.0,0.065915]
[1730680721213,0.27660361,68298.0,68295.0,0.065913]
[1730680721517,0.065911,68298.0,68295.0,0.065913]